bitfinex-derivatives/quotes_SOLF0:USTF0_20250202
["timestamp","ask_amount","ask_price","bid_price","bid_amount"]
[1738496915672,4.09e-05,208.24,208.2,0.03212118]
[1738496916179,2.9471,208.39,208.15,2.36776914]
[1738496916376,2.9471,208.39,208.15,1.4851]
[1738496916672,2.9471,208.39,208.16,0.8823668]
[1738496916877,2.9471,208.39,208.16,1.1712668]
[1738496917076,3.392e-05,208.29,208.25,0.03554277]
[1738496917578,1.46,208.39,208.22,95.08]
[1738496917778,1.5302,208.57,208.23,0.88206513]
[1738496917972,4.7973,208.51,208.38,4.8001]
[1738496918174,3.0317,208.57,208.29,4.04]
[1738496918371,3.0317,208.57,208.3,1.4786]
[1738496918572,0.03567561,208.47,208.42,0.0336285]
[1738496919079,1.4965,208.56,208.3,1.7671]
[1738496919284,1.4965,208.56,208.45,4.7985]
[1738496919578,0.03567155,208.47,208.45,4.7985]
[1738496919778,1.4965,208.56,208.44,4.7987]
[1738496919976,1.4965,208.56,208.3,1.7671]
[1738496920180,0.03457745,208.48,208.44,0.03580922]
[1738496920480,1.4965,208.56,208.49,4.7975]
[1738496920773,1.4965,208.56,208.44,0.03580922]
[1738496920774,1.5015,208.57,208.44,0.03580922]
[1738496921078,1.5015,208.57,208.48,4.7978]
[1738496921680,0.03311397,208.55,208.5,0.03071321]
[1738496922476,0.03311397,208.55,208.35,4.04]
[1738496922683,0.03311397,208.55,208.41,4.7994]
[1738496922684,4.7968,208.53,208.41,4.7994]
[1738496922875,4.7968,208.53,208.35,4.04]
[1738496923082,1.447,208.54,208.35,4.04]
[1738496923381,6.2436,208.54,208.35,4.04]
[1738496923782,0.03684881,208.47,208.42,0.03224307]
[1738496924981,4.7989,208.44,208.26,4.02]
[1738496925182,0.03684881,208.47,208.23,0.3159]
[1738496925476,4.8,208.39,208.22,99.1]
[1738496925879,1.447,208.54,208.3,4.802]
[1738496926183,4.7994,208.42,208.23,1.5177]
[1738496926482,0.03303654,208.36,208.32,0.0334706]
[1738496927387,0.03303654,208.36,208.32,4.8349706]
[1738496927585,0.03303654,208.36,208.32,0.0334706]
[1738496927986,4.7976,208.5,208.32,0.0334706]
[1738496928187,1.447,208.54,208.32,0.0334706]
[1738496928378,1.447,208.54,208.24,0.88205448]
[1738496928780,4.7973,208.51,208.33,4.8014]
[1738496929086,4.7973,208.51,208.23,1.5177]
[1738496929286,0.0367605,208.44,208.4,0.03590195]
[1738496929685,1.447,208.54,208.35,1.5048]
[1738496930080,0.03040635,208.44,208.4,0.03404423]
[1738496930484,1.447,208.54,208.35,1.5048]
[1738496930679,1.447,208.54,208.44,4.7988]
[1738496930879,1.447,208.54,208.35,1.5048]
[1738496931187,1.4974,208.56,208.48,4.7979]
[1738496931483,1.4974,208.56,208.35,1.5048]
[1738496931786,0.03554137,208.54,208.5,0.03050019]
[1738496931988,1.4974,208.56,208.36,0.88144689]
[1738496932486,0.03490841,208.54,208.5,0.03590309]
[1738496932686,1.4974,208.56,208.35,1.5048]
[1738496932985,0.03552558,208.54,208.5,0.03453643]
[1738496933379,1.4974,208.56,208.36,0.88144526]
[1738496933682,0.0361896,208.54,208.5,0.03328636]
[1738496934086,1.5015,208.57,208.36,0.88144526]
[1738496934281,1.5015,208.57,208.5,0.03298874]
[1738496934488,0.0340232,208.54,208.5,0.03298874]
[1738496934784,1.5015,208.57,208.51,4.7972]
[1738496934985,0.0346274,208.54,208.51,4.7972]
[1738496935185,0.0346274,208.54,208.5,0.03275879]
[1738496936586,0.0346274,208.54,208.52,4.797]
[1738496937390,1.5394,208.65,208.59,4.7954]
[1738496937988,1.5394,208.65,208.47,1.4721]
[1738496938681,0.03336593,208.58,208.54,0.03500592]
[1738496938887,0.03336593,208.58,208.39,3.94]
[1738496939084,0.03336593,208.58,208.34,0.3481]
[1738496939290,15.9794,208.65,208.35,3.94]
[1738496940290,0.03044758,208.56,208.52,0.03502406]
[1738496940691,1.5394,208.65,208.35,3.94]
[1738496940992,0.03252699,208.56,208.52,0.03409563]
[1738496941389,1.5394,208.65,208.47,3.92]
[1738496941586,1.457,208.67,208.47,3.92]
[1738496941786,1.4639,208.79,208.52,0.03266665]
[1738496941992,4.7921,208.74,208.63,4.7944]
[1738496942586,1.4639,208.79,208.59,3.92]
[1738496942792,0.03579758,208.71,208.66,0.03245221]
[1738496943185,0.03579758,208.71,208.6,3.92]
[1738496943186,1.4639,208.79,208.6,3.92]
[1738496943694,0.03122544,208.71,208.66,0.0331868]
[1738496943991,0.03122544,208.71,208.6,3.92]
[1738496943992,0.03122544,208.71,208.61,0.38]
[1738496944189,0.03122544,208.71,208.65,4.794]
[1738496944393,0.03122544,208.71,208.66,0.03450528]
[1738496944891,0.03122544,208.71,208.53,0.88078942]
[1738496945085,0.03122544,208.71,208.52,3.9]
[1738496945293,1.4639,208.79,208.53,0.8807711]
[1738496945495,1.4639,208.79,208.53,1.83986571]
[1738496945696,1.4639,208.79,208.54,1.83981972]
[1738496945995,1.4639,208.79,208.55,1.83977373]
[1738496946190,1.4639,208.79,208.56,1.83972775]
[1738496946493,51.55016494,209.05,208.64,0.03653271]
[1738496946791,51.55016494,209.05,208.65,98.84]
[1738496946792,1.5409,208.98,208.65,98.84]
[1738496946992,1.5409,208.98,208.66,1.2952711]
[1738496947187,4.7882,208.91,208.79,4.7908]
[1738496947383,1.5409,208.98,208.77,3.9]
[1738496947694,4.7898,208.84,208.83,0.03235334]
[1738496947896,0.0348062,208.87,208.69,3.9]
[1738496948094,1.5704,208.83,208.2,316.54]
[1738496948392,1.5704,208.83,208.57,101.61992606]
[1738496948593,1.5704,208.83,208.58,0.88042606]
[1738496949294,0.0337512,208.73,208.68,0.03192146]
[1738496949684,0.0337512,208.73,208.58,0.88042606]
[1738496949889,1.5704,208.83,208.69,4.7931]
[1738496950188,0.03577443,208.73,208.68,0.03627981]
[1738496950396,1.537,208.95,208.69,3.9]
[1738496950592,3.0204,208.94,208.69,3.9]
[1738496950789,3.0204,208.94,208.7,0.4116]
[1738496951495,4.7889,208.88,208.7,0.4116]
[1738496951695,0.03165685,208.84,208.8,0.03644113]
[1738496953193,4.7911,208.79,208.72,3.88]
[1738496953394,2.9973,208.83,208.58,0.4116]
[1738496953593,2.9973,208.83,208.62,3.88]
[1738496954484,4.792,208.74,208.7,0.03386179]
[1738496954688,0.03169012,208.75,208.57,3.86]
[1738496954892,4.7921,208.74,208.63,4.7944]
[1738496955094,2.9973,208.83,208.57,3.86]
[1738496955495,2.9973,208.83,208.58,3.36099617]
[1738496955694,2.9973,208.83,208.59,1.8394502]
[1738496955890,2.9973,208.83,208.6,1.83940424]
[1738496956190,0.0363544,208.73,208.68,0.03524954]
[1738496956593,4.7907,208.8,208.69,4.7931]
[1738496956895,2.9973,208.83,208.61,0.4845]
[1738496957195,0.03228464,208.73,208.72,4.7924]
[1738496957793,2.9973,208.83,208.73,4.7922]
[1738496957995,0.0310357,208.75,208.7,0.03125701]
[1738496958391,2.9973,208.83,208.6,0.95877277]
[1738496958585,2.9973,208.83,208.55,3.86]
[1738496958791,0.0354398,208.75,208.7,0.03203739]
[1738496958991,4.793,208.7,208.55,3.86]
[1738496959190,0.0354398,208.75,208.55,3.86]
[1738496959387,4.7939,208.66,208.56,4.7961]
[1738496959592,1.4459,208.69,208.54,94.88]
[1738496959788,1.5474,208.68,208.54,94.88]
[1738496960298,0.03288377,208.63,208.59,0.03508859]
[1738496960595,0.03288377,208.63,208.54,94.88]
[1738496960985,0.03288377,208.63,208.51,162.52160891]
[1738496961389,4.7954,208.6,208.51,162.52160891]
[1738496961588,0.03288377,208.63,208.51,162.52160891]
[1738496961996,3.84,208.67,208.53,0.03574679]
[1738496962200,3.84,208.67,208.51,162.52160891]
[1738496962201,0.03399988,208.59,208.51,136.4652557]
[1738496962598,0.03399988,208.59,208.37,2.1058]
[1738496962998,0.83612825,208.64,208.37,2.1058]
[1738496963200,0.83612825,208.63,208.4,4.7997]
[1738496963400,0.83612825,208.63,208.35,94.88]
[1738496963401,0.03149933,208.53,208.48,3.83e-05]
[1738496963601,4.7978,208.49,208.48,3.83e-05]
[1738496963900,3.84,208.56,208.35,94.88]
[1738496964494,3.84,208.56,208.32,136.4652557]
[1738496964692,4.7989,208.44,208.43,0.0357314]
[1738496964894,4.7989,208.44,208.43,3.14e-05]
[1738496965096,0.0341296,208.48,208.32,141.2668557]
[1738496965297,0.0341296,208.48,208.22,3.82]
[1738496965499,0.83576048,208.54,208.27,2.9898]
[1738496965701,4.7997,208.41,208.32,4.8015]
[1738496965902,3.84,208.56,208.27,2.9898]
[1738496966200,0.03418393,208.39,208.27,2.9898]
[1738496966403,4.83438393,208.39,208.3,4.802]
[1738496966602,4.8002,208.39,208.3,4.802]
[1738496966803,0.03023359,208.35,208.3,4.802]
[1738496967104,0.03023359,208.35,208.27,2.9898]
[1738496967704,4.7991,208.44,208.27,2.9898]
[1738496967904,25.93746326,208.65,208.27,2.9898]
[1738496968201,4.65615582,208.64,208.37,4.8003]
[1738496968407,0.83615582,208.63,208.27,2.9898]
[1738496968601,4.8001,208.39,208.31,4.8018]
[1738496968807,3.82,208.5,208.27,2.9898]
[1738496969008,0.03475985,208.47,208.27,2.9898]
[1738496969207,4.8002,208.39,208.3,4.8021]
[1738496969409,4.8002,208.39,208.27,2.9898]
[1738496970005,4.8015,208.33,208.27,2.9898]
[1738496970304,0.03375078,208.35,208.27,1.5457]
[1738496970504,0.03375078,208.35,208.2,2.9505]
[1738496970808,14.44,208.58,208.2,2.9505]
[1738496971003,4.65661501,208.57,208.2,2.9505]
[1738496971208,0.83661501,208.56,208.21,0.88220414]
[1738496972403,0.03075295,208.41,208.36,0.03583527]
[1738496972608,0.03075295,208.41,208.39,4.7999]
[1738496972806,194.0,208.71,208.37,3.0075]
[1738496973009,4.7786349,208.63,208.37,3.0075]
[1738496973312,0.0657,208.62,208.37,3.0075]
[1738496974106,0.03675201,208.52,208.47,0.0359481]
[1738496974507,0.0657,208.62,208.37,3.0075]
[1738496974711,0.03370581,208.52,208.47,0.03133621]
[1738496975006,4.7964,208.55,208.46,4.7984]
[1738496975511,0.0657,208.62,208.42,0.03107221]
[1738496975711,4.7961,208.57,208.47,4.7981]
[1738496975910,0.0657,208.62,208.47,4.7981]
[1738496976213,0.9586349,208.63,208.37,3.0075]
[1738496976415,0.9586349,208.63,208.38,0.88143093]
[1738496976814,0.03451298,208.53,208.48,0.03233776]
[1738496977015,0.9586349,208.63,208.48,0.03233776]
[1738496977313,0.9586349,208.63,208.45,3.8]
[1738496977512,0.9586349,208.63,208.53,4.7968]
[1738496977908,0.9586349,208.63,208.54,1.4675]
[1738496978212,0.9586349,208.63,208.55,1.4333]
[1738496978411,0.9586349,208.63,208.56,0.03543994]
[1738496978412,0.03042983,208.61,208.56,0.03543994]
[1738496978912,0.9586349,208.63,208.56,0.03543994]
[1738496979116,4.7932,208.69,208.57,4.7957]
[1738496979509,3.8,208.79,208.57,4.7957]
[1738496979916,3.8,208.79,208.59,4.7954]
[1738496980216,0.03256569,208.7,208.66,0.03276678]
[1738496980613,3.78,208.82,208.62,4.7946]
[1738496980916,0.03315392,208.7,208.66,0.03612754]
[1738496981316,4.7938,208.67,208.55,1.4333]
[1738496981515,3.78,208.82,208.55,1.4333]
[1738496981714,0.03104462,208.7,208.66,0.03544676]
[1738496982217,0.0657,208.84,208.67,4.7936]
[1738496982410,0.0326528,208.7,208.66,0.03118123]
[1738496982814,0.0657,208.84,208.56,1.5168]
[1738496983912,0.83852846,208.83,208.59,4.7954]
[1738496984216,0.03293457,208.72,208.68,0.03641362]
[1738496984708,0.83843456,208.83,208.56,1.5168]
[1738496985115,0.03617382,208.72,208.68,0.03343342]
[1738496985522,4.7938,208.67,208.6,4.7952]
[1738496985820,0.0657,208.84,208.6,4.7952]
[1738496986021,0.03131384,208.72,208.68,0.03553698]
[1738496986220,0.83835388,208.83,208.68,0.03553698]
[1738496986420,4.7936,208.68,208.61,4.7949]
[1738496986618,0.03213193,208.72,208.61,4.7949]
[1738496986818,0.83834564,208.83,208.61,4.7949]
[1738496987014,4.7909,208.8,208.7,0.03687613]
[1738496987215,0.0657,208.84,208.7,0.03687613]
[1738496987414,0.83843749,208.83,208.56,1.5168]
[1738496987620,0.03242579,208.77,208.56,1.5168]
[1738496987821,0.03242579,208.77,208.75,0.03313481]
[1738496988017,0.0657,208.84,208.56,1.5168]
[1738496988217,0.03430914,208.78,208.56,1.5168]
[1738496988517,4.791,208.79,208.74,0.03160653]
[1738496988716,4.791,208.79,208.56,1.5168]
[1738496988717,4.791,208.79,208.62,4.7946]
[1738496988926,1.654e-05,208.69,208.56,1.5168]
[1738496989429,4.7939,208.66,208.56,1.5168]
[1738496989635,0.0657,208.84,208.56,1.5168]
[1738496989820,9.5805,208.82,208.57,1.4854]
[1738496990026,15.27849681,208.81,208.57,1.4854]
[1738496990219,0.03212939,208.72,208.43,0.40635203]
[1738496990423,14.44,208.7,208.48,1.4854]
[1738496990623,4.7954,208.6,208.48,1.4854]
[1738496991122,0.123,208.69,208.48,1.4854]
[1738496991622,4.7954,208.6,208.56,0.03580876]
[1738496991823,0.03416284,208.61,208.56,0.03580876]
[1738496992025,0.03416284,208.61,208.48,1.4854]
[1738496992323,0.03416284,208.61,208.56,0.03290283]
[1738496992628,0.123,208.69,208.56,0.03290283]
[1738496992828,0.03423098,208.61,208.56,0.03290283]
[1738496993127,0.03423098,208.61,208.48,1.4854]
[1738496993426,3.74,208.71,208.56,0.03581204]
[1738496993627,0.0334612,208.57,208.56,0.03581204]
[1738496993823,0.83833148,208.77,208.52,3.76]
[1738496994129,0.123,208.78,208.53,1.5515]
[1738496995130,0.03030887,208.68,208.63,0.03573478]
[1738496995528,0.123,208.78,208.53,1.5515]
[1738496995728,4.7935,208.68,208.59,4.7954]
[1738496995929,0.03551287,208.68,208.63,0.03661591]
[1738496996429,197.74,208.79,208.53,1.5515]
[1738496996628,0.03444077,208.68,208.63,0.03131078]
[1738496996829,4.7943,208.64,208.63,0.03131078]
[1738496997031,14.5977,208.78,208.53,1.5515]
[1738496997231,4.7956,208.59,208.53,1.5515]
[1738496997432,0.03147148,208.66,208.53,1.5515]
[1738496997829,0.83846065,208.77,208.54,0.03023497]
[1738496998028,4.7951,208.61,208.55,4.7964]
[1738496998424,14.5977,208.78,208.44,1.5374]
[1738496998630,3.74,208.7,208.56,0.03145536]
[1738496998826,0.03607881,208.6,208.56,0.03145536]
[1738496999031,3.74,208.7,208.46,1.5488]
[1738496999337,3.72,208.74,208.56,0.03513015]
[1738496999530,0.03285744,208.6,208.56,0.03513015]
[1738496999730,4.7944,208.64,208.46,1.5488]
[1738497000131,0.03584007,208.6,208.56,0.03438733]
[1738497000333,4.7944,208.64,208.56,0.03438733]
[1738497000529,4.7951,208.61,208.56,0.03438733]
[1738497000832,3.72,208.74,208.46,1.5488]
[1738497001032,4.797,208.53,208.46,1.5488]
[1738497001232,208.44,208.73,208.46,1.5488]
[1738497001435,194.91661752,208.72,208.46,1.5488]
[1738497001636,0.03138359,208.62,208.57,0.03273264]
[1738497002032,194.0,208.72,208.5,3.72]
[1738497002230,0.0786,208.77,208.5,3.72]
[1738497002633,4.7922,208.74,208.66,4.7938]
[1738497002939,3.7986,208.82,208.5,3.72]
[1738497003135,4.7915,208.77,208.51,0.88087796]
[1738497003330,0.03422635,208.72,208.68,0.03354863]
[1738497003636,4.7906,208.81,208.69,4.7932]
[1738497003940,6.34250197,208.83,208.7,1.4808]
[1738497004435,39.8442753,208.98,208.7,1.4808]
[1738497004642,25.4042753,208.98,208.7,1.4808]
[1738497004839,0.03682164,208.79,208.74,0.03357679]
[1738497005036,0.83966625,208.97,208.74,3.75357679]
[1738497005235,25.4042753,208.98,208.74,3.72]
[1738497005432,4.7874,208.95,208.74,3.72]
[1738497005941,1.4464,209.03,208.74,3.72]
[1738497006336,0.03500619,208.87,208.84,4.7896]
[1738497006536,1.4464,209.03,208.85,1.5159]
[1738497006738,6.34250197,209.05,208.85,1.5159]
[1738497006934,4.7874,208.95,208.85,1.5159]
[1738497007134,6.34250197,209.05,208.85,1.5159]
[1738497007436,6.34250197,209.05,208.86,1.4999]
[1738497007734,0.03365876,208.97,208.86,1.4999]
[1738497007939,0.03365876,208.97,208.93,0.03173626]
[1738497010137,3.72,209.14,208.93,0.03173626]
[1738497010338,77.32524742,209.24,208.93,0.03173626]
[1738497010339,2.9565,209.16,208.93,0.03173626]
[1738497010537,2.9565,209.16,208.87,1.4705]
[1738497010737,2.9565,209.16,208.96,4.7869]
[1738497010738,4.7841,209.09,208.96,4.7869]
[1738497010938,2.9565,209.16,208.87,1.4705]
[1738497011435,0.0336196,209.04,208.99,0.03549725]
[1738497011844,4.7849,209.06,208.94,4.7874]
[1738497012038,2.9565,209.16,208.94,4.7874]
[1738497012235,2.9565,209.16,208.87,1.4705]
[1738497012439,0.03381343,209.04,208.99,0.03029127]
[1738497012943,2.9565,209.16,208.87,1.4705]
[1738497013338,0.03084682,209.04,208.99,0.03482678]
[1738497013539,0.0645,209.18,208.99,0.03482678]
[1738497013740,6.34250197,209.31,208.97,3.7]
[1738497013741,4.7835,209.12,208.97,3.7]
[1738497013940,3.7,209.24,208.98,1.5691]
[1738497014243,0.84121862,209.23,208.98,1.5691]
[1738497014447,3.7,209.23,208.99,1.4818]
[1738497014746,4.7838,209.11,209.08,0.03282653]
[1738497015140,4.7838,209.11,209.0,4.7861]
[1738497015346,3.1052,209.26,209.07,0.03474539]
[1738497015543,4.7831,209.14,209.07,0.03474539]
[1738497015748,4.7831,209.14,208.99,1.4818]
[1738497015946,4.7831,209.14,209.08,0.03625935]
[1738497016345,3.68,209.25,209.08,0.03625935]
[1738497016647,0.84155935,209.24,209.08,0.03625935]
[1738497016847,0.84155935,209.24,208.99,1.4818]
[1738497017047,0.84155935,209.24,209.14,8.081e-05]
[1738497017250,0.84155935,209.24,208.99,1.4818]
[1738497017549,3.68,209.23,208.99,1.4818]
[1738497017751,15.28155935,209.22,208.88,3.68]
[1738497018051,194.84155935,209.21,208.88,3.68]
[1738497018348,0.03146891,209.07,209.03,0.03639526]
[1738497018747,3.68,209.2,208.89,1.5351]
[1738497019252,0.03303243,209.07,209.05,4.7849]
[1738497019452,3.68,209.2,209.04,1.5351]
[1738497019755,4.7832,209.13,209.04,1.5351]
[1738497019944,3.68,209.2,209.04,1.5351]
[1738497020650,3.68,209.2,209.1,0.03503019]
[1738497020853,4.7836,209.11,209.1,0.03503019]
[1738497025953,18.12,209.2,208.96,1.5126]
[1738497026155,1.5476,209.1,208.87,2.9765]
[1738497026344,5.1158,209.09,208.88,1.4606]
[1738497026744,1.4558,209.09,208.88,1.4606]
[1738497027153,1.4558,209.09,208.98,4.7865]
[1738497027357,0.0313764,209.01,208.98,4.7865]
[1738497027551,4.7848,209.07,209.0,4.7862]
[1738497027750,1.4558,209.15,208.92,3.66]
[1738497028052,1.4558,209.15,208.99,4.7862]
[1738497028053,4.7845,209.08,208.99,4.7862]
[1738497028250,1.4558,209.15,208.92,3.66]
[1738497028949,1.4558,209.15,209.01,0.03314562]
[1738497029349,1.4558,209.15,208.87,6.6365]
[1738497030851,4.7852,209.05,208.99,4.7864]
[1738497031156,0.1266,209.14,208.99,0.03528011]
[1738497031157,0.0328448,209.03,208.99,0.03528011]
[1738497031649,4.7859,209.01,208.95,4.7871]
[1738497031854,0.03542797,209.03,208.99,0.03455629]
[1738497032054,4.7857,209.02,208.99,0.03455629]
[1738497032253,4.7857,209.02,208.94,4.7873]
[1738497032649,4.7857,209.02,208.98,0.03380409]
[1738497033149,0.03265284,209.03,208.98,0.03380409]
[1738497033355,0.03265284,209.03,208.88,1.43]
[1738497033853,1.4735,209.04,208.86,94.86]
[1738497034048,14.44,209.02,208.7,96.2445]
[1738497034249,14.44,209.0,208.75,4.7917]
[1738497034454,14.44,209.0,208.7,99.1795]
[1738497034656,0.03216944,208.88,208.84,0.03107278]
[1738497034852,0.03216944,208.88,208.7,99.1795]
[1738497035253,17.3745,208.89,208.62,163.69020433]
[1738497035656,0.83920992,208.88,208.62,163.69020433]
[1738497035857,4.7926,208.73,208.62,163.69020433]
[1738497036152,0.03022107,208.77,208.62,163.69020433]
[1738497036358,0.03022107,208.77,208.56,1.4535]
[1738497036359,4.7927,208.72,208.61,4.795]
[1738497036550,3.64,208.79,208.65,0.03231789]
[1738497036753,0.03524101,208.69,208.65,0.03231789]
[1738497036950,0.03524101,208.69,208.64,4.7944]
[1738497037158,18.08,208.87,208.56,1.4535]
[1738497037356,0.83897877,208.86,208.65,0.03328471]
[1738497037552,0.03182997,208.69,208.65,0.03328471]
[1738497037858,18.08,208.87,208.56,1.4535]
[1738497038053,4.47895028,208.86,208.65,0.03402788]
[1738497038257,0.03082373,208.69,208.56,1.4535]
[1738497038459,3.64,208.86,208.56,1.4535]
[1738497038656,3.64,208.86,208.73,0.03290475]
[1738497038954,4.7903,208.83,208.67,4.7936]
[1738497039150,0.03311753,208.82,208.56,1.4535]
[1738497039353,3.64,208.86,208.77,0.03287762]
[1738497039857,8.027e-05,208.71,208.63,3.64]
[1738497040054,3.64,208.86,208.63,3.64]
[1738497040760,2.9345,208.89,208.63,3.64]
[1738497041061,0.03063283,208.77,208.72,0.03511406]
[1738497041363,1.4706,208.89,208.72,0.03511406]
[1738497041563,3.64,208.96,208.65,0.88030099]
[1738497042062,8.4272,208.96,208.84,4.7898]
[1738497042271,0.0938,209.04,208.77,3.64]
[1738497042460,0.0938,209.04,208.78,5.1334]
[1738497042653,0.03361003,208.92,208.9,4.7882]
[1738497042955,3.64,209.09,208.88,0.03262802]
[1738497042956,0.0971,209.1,208.91,1.4934]
[1738497043357,4.7849,209.06,208.94,4.7875]
[1738497043562,0.0971,209.1,208.92,1.4687]
[1738497043869,1.5688,209.17,208.92,1.4687]
[1738497044061,1.6659,209.17,208.92,1.4687]
[1738497044373,1.6659,209.17,208.99,0.03074765]
[1738497044764,1.6659,209.17,208.97,4.7868]
[1738497044961,1.6659,209.17,208.92,1.4687]
[1738497045161,1.6659,209.17,209.06,0.03101565]
[1738497046263,5.1165,209.21,209.06,0.03101565]
[1738497046459,1.4965,209.21,209.06,0.03101565]
[1738497046665,1.4965,209.21,209.02,4.7855]
[1738497046966,1.4965,209.21,208.92,1.4687]
[1738497047166,4.784,209.1,209.04,0.032285]
[1738497047358,1.4965,209.21,209.04,0.032285]
[1738497047662,4.7842,209.09,208.92,1.4687]
[1738497048055,4.7842,209.09,208.93,1.5126]
[1738497048260,4.7835,209.12,209.01,4.7859]
[1738497048662,5.1165,209.21,209.01,4.7859]
[1738497049063,5.1165,209.21,209.04,4.81787318]
[1738497049465,4.7828,209.15,208.93,1.5126]
[1738497049765,1.4965,209.21,208.93,1.5126]
[1738497049961,1.4965,209.21,209.1,0.03310612]
[1738497050158,4.7824,209.17,209.1,0.03310612]
[1738497050364,4.7824,209.17,209.07,4.7845]
[1738497050562,4.7824,209.17,209.11,0.03487739]
[1738497050966,4.7824,209.17,209.0,3.6]
[1738497051167,1.552,209.25,209.0,3.6]
[1738497051362,1.552,209.25,209.12,0.0302209]
[1738497051666,0.83912011,209.24,208.99,4.7862]
[1738497051865,194.0,209.23,208.93,1.5126]
[1738497052459,4.7831,209.14,208.93,1.5126]
[1738497053164,0.03456426,209.06,209.01,0.03358566]
[1738497053565,0.83916812,209.24,208.93,1.5126]
[1738497053766,19.592,209.25,208.93,1.5126]
[1738497053966,0.03524929,209.06,209.01,0.03493214]
[1738497054169,0.83911483,209.24,209.01,0.03493214]
[1738497054365,0.83911483,209.24,208.93,1.5126]
[1738497054666,0.03054693,209.06,208.93,1.5126]
[1738497054867,4.7835,209.12,209.06,0.03108884]
[1738497055268,4.7835,209.12,209.02,4.7856]
[1738497055469,0.03506233,209.11,209.07,0.03662234]
[1738497055870,3.58,209.22,208.93,1.5126]
[1738497056078,0.03367076,209.11,209.07,0.032882]
[1738497056572,3.58,209.23,208.93,1.5126]
[1738497056871,0.03373173,209.11,209.07,0.03311993]
[1738497057166,3.58,209.23,208.94,3.58]
[1738497057671,0.0315666,209.11,209.07,0.03139195]
[1738497058077,0.83915435,209.22,208.93,1.5126]
[1738497058273,0.03045386,209.11,208.93,1.5126]
[1738497058773,4.7858,209.02,208.93,1.5126]
[1738497058969,18.02,209.12,208.8,3.58]
[1738497059170,1.5501,209.11,208.85,1.5169]
[1738497059671,4.7872,208.96,208.94,0.03407892]
[1738497059871,4.7872,208.96,208.85,1.5169]
[1738497059872,0.0302484,208.98,208.85,1.5169]
[1738497060071,3.58,209.01,208.85,1.5169]
[1738497060373,3.58,209.01,208.79,3.0046]
[1738497060574,1.5744,209.0,208.79,3.0046]
[1738497061172,0.03226587,208.92,208.87,0.03126961]
[1738497061473,1.458,209.11,208.85,3.58]
[1738497062074,1.458,209.11,208.79,186.15671889]
[1738497062276,14.44,209.09,208.79,3.0046]
[1738497062472,4.7883,208.91,208.82,4.7902]
[1738497062673,0.03108548,208.97,208.93,0.03461452]
[1738497062872,4.7888,208.89,208.79,7.7954]
[1738497063074,3.1235,208.99,208.79,3.0046]
[1738497063373,17.5635,208.99,208.77,96.2369]
[1738497063574,4.7897,208.85,208.77,96.2369]
[1738497063770,17.5635,208.99,208.77,96.2369]
[1738497063771,3.1235,208.99,208.77,96.2369]
[1738497064075,194.0,208.98,208.77,96.2369]
[1738497064278,0.03345424,208.83,208.79,0.03052073]
[1738497064572,0.83905332,208.97,208.77,96.2369]
[1738497064875,0.0323697,208.83,208.79,0.03390924]
[1738497065068,0.0323697,208.83,208.79,4.82480924]
[1738497065272,0.0586,208.96,208.77,96.2369]
[1738497065576,4.7876,208.94,208.83,4.7899]
[1738497065773,4.7876,208.94,208.79,0.03667295]
[1738497066176,3.58,209.1,208.77,282.96901889]
[1738497066474,194.0,209.13,208.78,0.87973359]
[1738497066675,1.5738,209.14,208.78,184.03185248]
[1738497066876,0.0592,209.13,208.79,2.36883359]
[1738497067177,0.03373244,208.98,208.94,0.03046205]
[1738497067476,1.5738,209.14,208.94,0.03046205]
[1738497067672,1.5738,209.14,208.92,3.0591]
[1738497067873,4.7843,209.09,208.97,4.7868]
[1738497068178,1.4341,209.18,208.92,3.0591]
[1738497068378,4.7834,209.13,209.02,4.7856]
[1738497068673,1.4341,209.18,208.92,3.0591]
[1738497068876,0.0339034,209.07,209.03,0.03453908]